fUSD/lending_fUSD_20250905
["ID","MTS","AMOUNT","RATE_DAILY","PERIOD"]
[383648755,1757067032369,-164.16,0.00025662,2]
[383648756,1757067032379,-852.229319,0.00025687,2]
[383648757,1757067032389,-18523.9477384,0.00025688,3]
[383648758,1757067032399,-15546.38205219,0.0002569,3]
[383648761,1757067037562,-1155.64164952,0.0002569,3]
[383648939,1757067039718,-746.7017805,0.0002569,3]
[383648940,1757067039730,-2236.02593106,0.0002569,3]
[383648941,1757067039771,-880.0301178,0.0002569,3]
[383648942,1757067039879,-1032.75,0.0002569,3]
[383648944,1757067039891,-696.93415452,0.0002569,3]
[383648945,1757067039986,-2253.588616,0.0002569,3]
[383648946,1757067039999,-21779.80681217,0.0002569,3]
[383648947,1757067040009,-220.96992662,0.0002569,3]
[383648948,1757067040018,-151.0,0.0002569,7]
[383648949,1757067040027,-272.390681,0.0002569,7]
[383648950,1757067040037,-400.0,0.0002569,2]
[383648951,1757067040047,-400.0,0.0002569,2]
[383648952,1757067040056,-11481.9618042,0.0002569,3]
[383648953,1757067040068,-2446.15435542,0.0002569,3]
[383649036,1757067045658,-1010.56232111,0.0002569,3]
[383649037,1757067045671,-11246.0,0.0002569,3]
[383649038,1757067045816,-372.39279798,0.0002569,3]
[383649039,1757067045872,-328.46856,0.0002569,3]
[383649531,1757067925658,1211.58106043,0.000175,2]
[383649533,1757068023736,155.36,0.00013699,2]
[383649534,1757068064335,5624.93559739,0.00027,120]
[383649560,1757068231779,-151.0,0.00021462,2]
[383649561,1757068231789,-151.0,0.00021486,2]
[383649562,1757068231798,-151.0,0.00021524,2]
[383649563,1757068231807,-13.77034477,0.00021565,2]
[383649565,1757068231833,-137.22965523,0.00021565,2]
[383649566,1757068231843,-272.9580314,0.00021997,2]
[383649567,1757068231925,-927.0419686,0.00021997,2]
[383649568,1757068231934,-500.0,0.00021998,2]
[383649569,1757068231944,-500.0,0.00021998,2]
[383649570,1757068231954,-422.98499088,0.00021998,2]
[383649571,1757068231963,-219.6551136,0.00021999,2]
[383649572,1757068231972,-2035.28203895,0.00022,4]
[383649573,1757068231984,-401.79,0.00022,4]
[383649574,1757068232089,-14534.51782255,0.00022,4]
[383649575,1757068232101,-1098.99573606,0.00022,4]
[383649576,1757068232117,-1244.61667068,0.00022,4]
[383649577,1757068232128,-441.08,0.00022,4]
[383649578,1757068232140,-656.47239585,0.00022,4]
[383649579,1757068232151,-438.0,0.00022,4]
[383649580,1757068232164,-16997.23379572,0.00022,4]
[383649582,1757068232174,-837.67967606,0.00022,15]
[383649584,1757068232183,-857.05776805,0.00022,2]
[383649586,1757068232192,-1035.0,0.00022499,2]
[383649588,1757068232201,-2900.0,0.000225,15]
[383649590,1757068232211,-1044.41952695,0.00023,2]
[383649592,1757068232220,-410.8457917,0.00023,14]
[383649594,1757068232229,-195.0,0.00023989,2]
[383649596,1757068232239,-5000.00596665,0.00024,5]
[383649598,1757068232255,-1680.0,0.00024016,2]
[383649600,1757068232264,-215.0,0.000245,2]
[383649602,1757068232274,-484.44,0.00024652,2]
[383649604,1757068232283,-186.73428947,0.00024652,2]
[383649606,1757068232292,-161.02,0.00024657,2]
[383649608,1757068232301,-175.86,0.00024681,2]
[383649610,1757068232311,-1540.0,0.000247,2]
[383649613,1757068232320,-257.91778498,0.00024885,2]
[383649616,1757068232329,-4874.89652047,0.000249,2]
[383649618,1757068232339,-157.0,0.00025,7]
[383649620,1757068232348,-293.17,0.000253,2]
[383649622,1757068232357,-1300.0,0.00025386,2]
[383649624,1757068232367,-567.0,0.00025386,2]
[383649626,1757068232376,-156.12,0.00025392,2]
[383649628,1757068232385,-491.44566,0.0002543,2]
[383649630,1757068232395,-782.26545781,0.00025446,2]
[383649632,1757068232404,-604.867,0.00025494,10]
[383649634,1757068232413,-4209.68072231,0.00025495,2]
[383649636,1757068232425,-27059.43143949,0.00025495,2]
[383649638,1757068232435,-401.79,0.00025495,2]
[383649640,1757068232444,-5028.03150408,0.00025495,2]
[383649642,1757068232455,-299.13029921,0.00025495,2]
[383649644,1757068232466,-542.79234401,0.00025495,2]
[383649694,1757068237940,-207.19222247,0.00021996,2]
[383649695,1757068237950,-265.31421097,0.00021996,2]
[383649696,1757068237959,-238.75445729,0.00021996,2]
[383649697,1757068237976,-12.59471959,0.00025386,2]
[383649698,1757068237990,-630.64628041,0.00025386,2]
[383649699,1757068238000,-5167.35380102,0.00025495,2]
[383649700,1757068238012,-2521.41596291,0.00025495,2]
[383649716,1757068240255,-329.0207687,0.00025495,2]
[383649717,1757068240267,-267.58882757,0.00025495,2]
[383649718,1757068240277,-305.74444565,0.0002558,2]
[383649719,1757068240287,-1420.67996966,0.00025581,2]
[383649726,1757068242867,-3201.43055254,0.00025581,2]
[383649727,1757068242878,-5032.30438443,0.00025588,2]
[383649728,1757068242888,-796.6897,0.0002559,2]
[383649729,1757068242897,-2655.0209,0.0002559,2]
[383649730,1757068242907,-447.812545,0.000256,10]
[383649731,1757068242917,-150.0,0.00025655,2]
[383649732,1757068242927,-802.12906909,0.00025656,2]
[383649733,1757068242936,-1022.32136257,0.00025658,2]
[383649734,1757068242946,-1242.51365604,0.0002566,2]
[383649735,1757068242956,-1462.70594952,0.00025662,2]
[383649736,1757068242966,-1682.898243,0.00025663,2]
[383649737,1757068242976,-1903.09053647,0.00025665,2]
[383649738,1757068242985,-1392.11995331,0.00025667,2]
[383649739,1757068243005,-731.16287664,0.00025667,2]
[383649740,1757068243015,-2343.47512342,0.00025669,2]
[383649741,1757068243025,-418.56,0.00025669,2]
[383649742,1757068243037,-1594.47475327,0.0002567,2]
[383649761,1757068246065,-530.99715009,0.0002567,2]
[383649762,1757068246223,-438.19551354,0.0002567,2]
[383649763,1757068246234,-93.34448646,0.0002567,2]
[383649764,1757068246279,-62.77551354,0.0002567,2]
[383649765,1757068246288,-152.0,0.0002567,3]
[383649766,1757068246298,-279.62796217,0.0002567,3]
[383649767,1757068246307,-385.59652429,0.00025671,3]
[383650103,1757068874739,195760.0,0.00030136,120]
[383650104,1757068910264,155.36,0.00013699,2]
[383650127,1757069360362,10000.0,0.00020021,2]
[383650128,1757069373879,3322.33893957,0.00020021,2]
[383650129,1757069373900,569.66106043,0.00020021,2]
[383650130,1757069432317,-234.0,0.000234,2]
[383650131,1757069432327,-168.87,0.00024539,2]
[383650132,1757069432337,-229.0,0.0002458,2]
[383650133,1757069432347,-553.14,0.00024587,2]
[383650134,1757069432357,-242.22,0.00024645,2]
[383650135,1757069432367,-257.91778498,0.00024885,2]
[383650136,1757069432376,-4590.00741266,0.000249,2]
[383650137,1757069432386,-982.41573287,0.00024929,2]
[383650138,1757069432395,-1195.0,0.00024964,2]
[383650139,1757069432404,-782.26545782,0.00024965,2]
[383650140,1757069432413,-168.0,0.00025199,2]
[383650141,1757069432422,-263.85,0.000253,2]
[383650143,1757069432432,-782.26545782,0.00025324,2]
[383650145,1757069432441,-161.61257509,0.0002537,2]
[383650147,1757069432451,-153.75857952,0.00025404,2]
[383650148,1757069432466,-300.0,0.00025404,2]
[383650150,1757069432476,-2034.0,0.00025405,2]
[383650151,1757069432485,-2201.039,0.00025405,2]
[383650153,1757069432494,-168.0,0.00025408,2]
[383650155,1757069432505,-250.0,0.0002546,2]
[383650157,1757069432515,-339.17553123,0.0002546,2]
[383650159,1757069432524,-265.70998331,0.0002546,2]
[383650162,1757069432535,-500.0,0.0002546,2]
[383650165,1757069432545,-151.0,0.0002546,2]
[383650166,1757069432555,-151.0,0.0002546,2]
[383650167,1757069432564,-151.0,0.0002546,2]
[383650168,1757069432573,-151.0,0.0002546,2]
[383650169,1757069432583,-600.0,0.0002546,2]
[383650170,1757069432592,-699.32598667,0.0002546,2]
[383650171,1757069432601,-151.0,0.0002546,2]
[383650172,1757069432612,-250.0,0.0002546,2]
[383650173,1757069432622,-250.0,0.0002546,2]
[383650174,1757069432631,-256.5554303,0.0002546,2]
[383650175,1757069432641,-11632.8448968,0.00025475,2]
[383650176,1757069432651,-6704.1903733,0.00025475,2]
[383650177,1757069432660,-3034.9454805,0.00025475,2]
[383650178,1757069432671,-850.055,0.000255,10]
[383650179,1757069432680,-150.331,0.000255,10]
[383650180,1757069432690,-152.0,0.00025505,3]
[383650181,1757069432699,-500.0,0.00025515,2]
[383650182,1757069432709,-557.30571376,0.0002556,7]
[383650183,1757069432719,-5300.12006992,0.00025561,2]
[383650184,1757069432728,-267.5263899,0.00025561,2]
[383650185,1757069432738,-4581.6980778,0.00025568,2]
[383650186,1757069432747,-159.42145374,0.00025569,2]
[383650187,1757069432757,-618.93805216,0.0002557,2]
[383650188,1757069432766,-2500.0,0.0002557,2]
[383650189,1757069432776,-160.0,0.00025572,2]
[383650190,1757069432785,-160.0,0.00025572,2]
[383650191,1757069432795,-212.63008182,0.00025574,2]
[383650192,1757069432804,-160.0,0.00025574,2]
[383650193,1757069432813,-164.44782663,0.00025581,2]
[383650194,1757069432823,-517.2529,0.00025582,2]
[383650195,1757069432832,-607.76858748,0.0002559,2]
[383650196,1757069432841,-150.0,0.0002559,2]
[383650197,1757069432851,-150.0,0.0002559,2]
[383650198,1757069432860,-150.0,0.0002559,2]
[383650199,1757069432870,-150.0,0.0002559,2]
[383650200,1757069432879,-150.0,0.0002559,2]
[383650201,1757069432888,-150.0,0.0002559,2]
[383650202,1757069432898,-150.0,0.0002559,2]
[383650203,1757069432907,-150.0,0.0002559,2]
[383650204,1757069432917,-150.0,0.0002559,2]
[383650205,1757069432927,-250.0,0.0002559,2]
[383650206,1757069432937,-150.0,0.0002559,2]
[383650207,1757069432946,-150.0,0.0002559,2]
[383650208,1757069432956,-250.0,0.0002559,2]
[383650209,1757069432965,-500.0,0.0002559,2]
[383650210,1757069432975,-150.0,0.0002559,2]
[383650211,1757069432984,-150.0,0.0002559,2]
[383650212,1757069432994,-150.0,0.0002559,2]
[383650213,1757069433003,-150.0,0.0002559,2]
[383650214,1757069433013,-150.0,0.0002559,2]
[383650215,1757069433022,-150.0,0.0002559,2]
[383650216,1757069433032,-150.0,0.0002559,2]
[383650217,1757069433042,-153.1392916,0.0002559,2]
[383650218,1757069433052,-500.0,0.0002559,2]
[383650219,1757069433061,-151.0,0.00025636,7]
[383650220,1757069433072,-151.0,0.00025636,7]
[383650221,1757069433082,-151.0,0.00025636,7]
[383650222,1757069433092,-151.0,0.00025636,7]
[383650223,1757069433102,-1224.0,0.00025636,3]
[383650224,1757069433112,-1224.0,0.00025636,3]
[383650225,1757069433122,-1224.0,0.00025636,3]
[383650226,1757069433132,-1224.0,0.00025636,3]
[383650227,1757069433142,-1224.0,0.00025636,3]
[383650228,1757069433151,-1224.0,0.00025636,3]
[383650229,1757069433161,-1224.0,0.00025636,3]
[383650230,1757069433171,-1224.0,0.00025636,3]
[383650231,1757069433181,-1224.0,0.00025636,3]
[383650232,1757069433191,-1224.0,0.00025636,3]
[383650233,1757069433201,-1224.0,0.00025636,3]
[383650234,1757069433212,-154.0,0.00025636,3]
[383650235,1757069433222,-1224.0,0.00025636,3]
[383650236,1757069433232,-154.0,0.00025636,3]
[383650237,1757069433242,-1224.0,0.00025636,3]
[383650238,1757069433253,-235.71655382,0.00025636,3]
[383650239,1757069433266,-1224.0,0.00025636,3]
[383650240,1757069433277,-160.0,0.00025636,3]
[383650241,1757069433288,-161.61257509,0.00025644,2]
[383650242,1757069433299,-209.28,0.0002565,2]
[383650243,1757069433311,-209.28,0.00025651,2]
[383650244,1757069433322,-9456.89740218,0.00025657,3]
[383650245,1757069433332,-3152.29913406,0.00025657,3]
[383650246,1757069433342,-12112.15418226,0.00025658,3]
[383650247,1757069433356,-5693.49834366,0.00025658,3]
[383650248,1757069433368,-1108.14227848,0.00025658,3]
[383650249,1757069433378,-151.0,0.00025658,7]
[383650250,1757069433388,-151.0,0.00025658,7]
[383650251,1757069433398,-151.0,0.00025658,7]
[383650252,1757069433408,-151.0,0.00025658,7]
[383650253,1757069433419,-151.0,0.00025658,7]
[383650254,1757069433429,-151.0,0.00025658,7]
[383650255,1757069433439,-27627.90286963,0.00025658,3]
[383650257,1757069437993,-348.3210345,0.00024585,2]
[383650258,1757069438003,-3047.78280838,0.00025658,3]
[383650259,1757069438098,-305.37387015,0.00025658,3]
[383650264,1757069440088,-38369.52140114,0.00025658,3]
[383650265,1757069440098,-151.0,0.00025659,7]
[383650266,1757069440107,-151.0,0.00025659,7]
[383650267,1757069440117,-266.83862,0.00025659,7]
[383650268,1757069440126,-12609.1965362,0.00025659,3]
[383650269,1757069440136,-11197.32538433,0.00025659,3]
[383650270,1757069440147,-4217.54015466,0.00025659,3]
[383650271,1757069440159,-2003.39830336,0.00025659,3]
[383650272,1757069440171,-482.30233872,0.00025659,3]
[383650294,1757069443071,-1115.0,0.00025659,3]
[383650295,1757069443282,-6202.82689143,0.00025659,3]
[383650296,1757069443291,-400.0,0.0002566,2]
[383650297,1757069443301,-400.0,0.0002566,2]
[383650298,1757069443310,-151.0,0.0002566,7]
[383650299,1757069443319,-151.0,0.0002566,7]
[383650300,1757069443328,-401.60073471,0.0002566,2]
[383650301,1757069443336,-402.38859449,0.0002566,2]
[383650302,1757069443345,-402.0490056,0.0002566,2]
[383650303,1757069443354,-400.0,0.0002566,2]
[383650304,1757069443362,-400.0,0.0002566,2]
[383650305,1757069443371,-400.0,0.0002566,2]
[383650306,1757069443378,-400.0,0.0002566,2]
[383650307,1757069443386,-401.67675053,0.0002566,2]
[383650308,1757069443395,-198.07090491,0.0002566,2]
[383650309,1757069443404,-500.0,0.0002566,2]
[383650310,1757069443412,-401.12729757,0.0002566,2]
[383650311,1757069443421,-400.0,0.0002566,2]
[383650312,1757069443431,-402.14742394,0.0002566,2]
[383650313,1757069443439,-406.27,0.0002566,2]
[383650314,1757069443447,-400.0,0.0002566,2]
[383650315,1757069443455,-400.0,0.0002566,2]
[383650316,1757069443469,-400.0,0.0002566,2]
[383650317,1757069443479,-400.0,0.0002566,2]
[383650318,1757069443488,-400.0,0.0002566,2]
[383650319,1757069443498,-400.0,0.0002566,2]
[383650320,1757069443509,-400.0,0.0002566,2]
[383650321,1757069443518,-400.0,0.0002566,2]
[383650322,1757069443527,-400.0,0.0002566,2]
[383650323,1757069443537,-6911.9836771,0.0002566,3]
[383650332,1757069446424,-400.0,0.0002566,2]
[383650333,1757069446435,-402.64544953,0.0002566,2]
[383650334,1757069446444,-26.47607964,0.0002566,3]
[383650344,1757069696263,6363.48616741,0.00030137,120]
[383650360,1757070205012,486.62,0.00030136,120]
[383650361,1757070291848,155.36,0.00013699,2]
[383650362,1757070328013,157.51,0.00012179,2]
[383650372,1757070632334,-483.10760997,0.00020979,2]
[383650373,1757070632344,-550.0,0.00020998,2]
[383650374,1757070632354,-300.0,0.00020998,2]
[383650375,1757070632365,-588.0,0.00020998,2]
[383650376,1757070632375,-300.0,0.00020998,2]
[383650377,1757070632385,-500.0,0.00020999,2]
[383650378,1757070632398,-180.60570699,0.00020999,2]
[383650379,1757070632408,-500.0,0.00020999,2]
[383650380,1757070632417,-500.0,0.00020999,2]
[383650381,1757070632427,-500.0,0.00020999,2]
[383650382,1757070632437,-500.0,0.00020999,2]
[383650383,1757070632447,-500.0,0.00020999,2]
[383650384,1757070632457,-500.0,0.00020999,2]
[383650385,1757070632467,-478.02701082,0.00020999,2]
[383650386,1757070632477,-637.07272909,0.00020999,2]
[383650387,1757070632488,-500.0,0.00020999,2]
[383650388,1757070632498,-6000.0,0.00021,3]
[383650389,1757070632507,-150.0,0.000214,2]
[383650390,1757070632518,-211.0,0.0002258,2]
[383650391,1757070632527,-420.0,0.00022841,2]
[383650392,1757070632537,-3430.16025626,0.00023,3]
[383650393,1757070632550,-1450.0,0.00023,3]
[383650394,1757070632562,-1572.35259235,0.00023,3]
[383650395,1757070632574,-606.48715139,0.00023,3]
[383650396,1757070632583,-379.09425279,0.00023,3]
[383650397,1757070632595,-467.69824505,0.00023,3]
[383650398,1757070632606,-1644.27585547,0.00023,3]
[383650399,1757070632618,-519.62300056,0.00023,3]
[383650400,1757070632628,-250.0,0.00023077,2]
[383650401,1757070632641,-207.0,0.0002377,2]
[383650402,1757070632651,-250.0,0.00023993,2]
[383650403,1757070632661,-307.68785954,0.00024,2]
[383650404,1757070632673,-402.91371413,0.00024,2]
[383650405,1757070632690,-16033.77161381,0.00024,2]
[383650406,1757070632701,-12.42802119,0.00024,2]
[383650407,1757070632711,-200.0,0.000241,7]
[383650408,1757070632721,-104.6770672,0.00024286,2]
[383650409,1757070632734,-58.2929328,0.00024286,2]
[383650410,1757070632743,-724.0,0.00024295,2]
[383650411,1757070632753,-409.15766037,0.00024295,2]
[383650412,1757070632766,-811.90036967,0.00024295,2]
[383650414,1757070632778,-884.98,0.00024295,2]
[383650417,1757070632791,-1188.97389735,0.00024295,2]
[383650418,1757070632807,-10438.89607261,0.00024295,2]
[383650419,1757070632816,-896.0,0.00024295,2]
[383650421,1757070632826,-168.87,0.00024357,2]
[383650423,1757070632836,-1099.18,0.00024417,2]
[383650425,1757070632846,-200.0,0.0002451,7]
[383650427,1757070632856,-206.52,0.00024544,2]
[383650429,1757070632866,-210.33095187,0.00024567,2]
[383650431,1757070632879,-188.92,0.00024569,2]
[383650433,1757070632889,-212.0,0.00024575,2]
[383650435,1757070632899,-854.80176529,0.00024749,2]
[383650438,1757070632909,-267.554,0.00024785,2]
[383650441,1757070632919,-10549.25523897,0.000248,2]
[383650445,1757070632932,-3641.4120117,0.000248,2]
[383650447,1757070632944,-2319.17474052,0.000248,2]
[383650579,1757070643848,-348.56363657,0.00020997,2]
[383650582,1757070643858,-219.78077898,0.00020997,2]
[383650585,1757070643867,-7561.89837929,0.000248,2]
[383650587,1757070643879,-20848.88551184,0.000248,2]
[383650834,1757071029399,11384.95382471,0.00030137,120]
[383650836,1757071143680,672.40603386,0.000301,120]
[383650837,1757071166259,166.53,0.00018342,2]
[383650838,1757071236333,155.61,0.00013699,2]
[383650845,1757071362705,154.62,0.00011139,2]
[383650846,1757071363149,154.62,0.00016708,2]
[383650847,1757071464735,155.2,0.00016712,2]
[383650848,1757071508588,13330.88893957,0.0002,2]
[383650849,1757071508610,15000.0,0.0002,2]
[383650850,1757071508632,15000.0,0.0002,2]
[383650851,1757071508654,15000.0,0.0002,2]
[383650852,1757071508677,15000.0,0.0002,2]
[383650853,1757071508700,15000.0,0.0002,2]
[383650854,1757071508723,15000.0,0.0002,2]
[383650855,1757071508746,15000.0,0.0002,2]
[383650856,1757071508769,15000.0,0.0002,2]
[383650857,1757071508791,15000.0,0.0002,2]
[383650858,1757071508813,15000.0,0.0002,2]
[383650859,1757071508836,15000.0,0.0002,2]
[383650860,1757071508860,15000.0,0.0002,2]
[383650861,1757071508883,15000.0,0.0002,2]
[383650862,1757071508907,15000.0,0.0002,2]
[383650863,1757071508930,15000.0,0.0002,2]
[383650864,1757071508953,15000.0,0.0002,2]
[383650865,1757071508978,15000.0,0.0002,2]
[383650866,1757071509005,15000.0,0.0002,2]
[383650867,1757071509031,15000.0,0.0002,2]
[383650868,1757071509068,15000.0,0.0002,2]
[383650869,1757071509095,15000.0,0.0002,2]
[383650870,1757071509124,15000.0,0.0002,2]
[383650871,1757071509150,15000.0,0.0002,2]
[383650872,1757071509176,15000.0,0.0002,2]
[383650873,1757071509198,15000.0,0.0002,2]
[383650874,1757071509227,15000.0,0.0002,2]
[383650875,1757071509254,15000.0,0.0002,2]
[383650876,1757071509294,15000.0,0.0002,2]
[383650877,1757071509319,15000.0,0.0002,2]
[383650878,1757071509342,7929.72622722,0.0002,2]
[383650879,1757071525875,7070.27377278,0.000175,2]
[383650880,1757071525898,3151.75520821,0.000175,2]
[383650882,1757071626142,1517.64,0.000153,2]
[383650883,1757071629714,3597.20106659,0.00015,2]
[383650889,1757071772131,-250.0,0.00022135,2]
[383650890,1757071772152,-157.21,0.00022223,2]
[383650891,1757071772175,-154.62,0.00022278,2]
[383650892,1757071772201,-180.19,0.0002235,2]
[383650893,1757071772223,-300.0,0.00022678,2]
[383650894,1757071772245,-162.11,0.00022679,2]
[383650895,1757071772271,-500.0,0.00022679,2]
[383650896,1757071772292,-329.04033339,0.00022679,2]
[383650897,1757071772316,-500.0,0.00022679,2]
[383650898,1757071772338,-500.0,0.00022679,2]
[383650899,1757071772361,-500.0,0.00022679,2]
[383650900,1757071772385,-500.0,0.00022679,2]
[383650901,1757071772408,-500.0,0.00022679,2]
[383650902,1757071772431,-500.0,0.00022679,2]
[383650903,1757071772453,-500.0,0.00022679,2]
[383650904,1757071772477,-500.0,0.00022679,2]
[383650905,1757071772499,-500.0,0.00022679,2]
[383650906,1757071772524,-500.0,0.00022679,2]
[383650907,1757071772549,-500.0,0.00022679,2]
[383650908,1757071772570,-500.0,0.00022679,2]
[383650909,1757071772592,-500.0,0.00022679,2]
[383650910,1757071772614,-500.0,0.00022679,2]
[383650911,1757071772636,-500.0,0.00022679,2]
[383650912,1757071772657,-500.0,0.00022679,2]
[383650913,1757071772679,-500.0,0.00022679,2]
[383650914,1757071772700,-500.0,0.00022679,2]
[383650915,1757071772722,-500.0,0.00022679,2]
[383650916,1757071772743,-500.0,0.00022679,2]
[383650917,1757071772777,-500.0,0.00022679,2]
[383650918,1757071772802,-500.0,0.00022679,2]
[383650919,1757071772825,-500.0,0.00022679,2]
[383650920,1757071772847,-363.34514071,0.00022679,2]
[383650921,1757071772869,-500.0,0.00022679,2]
[383650922,1757071772891,-500.0,0.00022679,2]
[383650923,1757071772913,-103.4845259,0.00022679,2]
[383650924,1757071773765,-396.5154741,0.00022679,2]
[383650925,1757071773789,-500.0,0.00022679,2]
[383650926,1757071773812,-500.0,0.00022679,2]
[383650927,1757071773836,-500.0,0.00022679,2]
[383650928,1757071773860,-500.0,0.00022679,2]
[383650929,1757071773884,-500.0,0.00022679,2]
[383650930,1757071773907,-500.0,0.00022679,2]
[383650931,1757071773930,-500.0,0.00022679,2]
[383650932,1757071773953,-500.0,0.00022679,2]
[383650933,1757071773977,-500.0,0.00022679,2]
[383650934,1757071774001,-500.0,0.00022679,2]
[383650935,1757071774024,-500.0,0.00022679,2]
[383650936,1757071774048,-500.0,0.00022679,2]
[383650937,1757071774072,-500.0,0.00022679,2]
[383650938,1757071774095,-500.0,0.00022679,2]
[383650939,1757071774118,-500.0,0.00022679,2]
[383650940,1757071774141,-500.0,0.00022679,2]
[383650941,1757071774165,-500.0,0.00022679,2]
[383650942,1757071774188,-186.41543254,0.00022679,2]
[383650943,1757071774215,-500.0,0.00022679,2]
[383650944,1757071774239,-500.0,0.00022679,2]
[383650945,1757071774263,-500.0,0.00022679,2]
[383650946,1757071774287,-500.0,0.00022679,2]
[383650947,1757071774311,-500.0,0.00022679,2]
[383650948,1757071774335,-500.0,0.00022679,2]
[383650949,1757071774359,-500.0,0.00022679,2]
[383650950,1757071774381,-500.0,0.00022679,2]
[383650951,1757071774404,-500.0,0.00022679,2]
[383650952,1757071774427,-500.0,0.00022679,2]
[383650953,1757071774449,-500.0,0.00022679,2]
[383650954,1757071774473,-417.06909336,0.00022679,2]
[383650955,1757071774569,-82.93090664,0.00022679,2]
[383650956,1757071774596,-500.0,0.00022679,2]
[383650957,1757071774622,-500.0,0.00022679,2]
[383650958,1757071774646,-500.0,0.00022679,2]
[383650959,1757071774668,-500.0,0.00022679,2]
[383650960,1757071774691,-500.0,0.00022679,2]
[383650961,1757071774713,-500.0,0.00022679,2]
[383650962,1757071774735,-500.0,0.00022679,2]
[383650963,1757071774764,-500.0,0.00022679,2]
[383650964,1757071774788,-500.0,0.00022679,2]
[383650965,1757071774813,-500.0,0.00022679,2]
[383650966,1757071774836,-900.0,0.000227,8]
[383650967,1757071774857,-813.0,0.00022794,2]
[383650968,1757071774879,-1200.0,0.00022794,2]
[383650969,1757071774901,-415.6822088,0.00022794,2]
[383650970,1757071774923,-254.89816984,0.00022794,2]
[383650971,1757071774947,-186.36472767,0.00022794,2]
[383650972,1757071774968,-300.0,0.00022796,2]
[383650973,1757071774992,-1200.0,0.00022796,2]
[383650974,1757071775014,-1800.0,0.000228,8]
[383650975,1757071775039,-544.89,0.00022828,2]
[383650976,1757071775067,-2302.23398705,0.0002288,2]
[383650977,1757071775116,-6945.97083638,0.0002288,2]
[383650978,1757071775141,-156.08587707,0.0002288,2]
[383650979,1757071775163,-164.44782663,0.0002288,2]
[383650980,1757071775187,-7733.49545992,0.0002288,2]
[383650981,1757071777884,-1590.59266232,0.0002288,2]
[383650982,1757071777907,-819.26815717,0.0002288,2]
[383650983,1757071777930,-172.0776664,0.0002288,2]
[383650984,1757071777953,-986.532,0.00022899,2]
[383650985,1757071777977,-157.539,0.00022899,2]
[383650986,1757071777999,-658.81793316,0.000229,2]
[383650987,1757071778022,-2700.0,0.000229,8]
[383650988,1757071778044,-234.36200944,0.00022966,2]
[383650989,1757071778066,-151.0,0.00022966,2]
[383650990,1757071778088,-151.0,0.00022966,2]
[383650991,1757071778112,-151.0,0.00022966,2]
[383650992,1757071778134,-151.0,0.00022966,2]
[383650993,1757071778158,-151.0,0.00022966,2]
[383650994,1757071778180,-151.0,0.00022966,2]
[383650995,1757071778204,-195.06271963,0.00022966,2]
[383650996,1757071778227,-500.0,0.00022966,2]
[383650997,1757071778250,-500.0,0.00022966,2]
[383650998,1757071778271,-600.0,0.00022966,2]
[383650999,1757071778295,-151.77,0.0002297,2]
[383651000,1757071778319,-151.77,0.0002297,2]
[383651001,1757071778343,-151.77,0.0002297,2]
[383651002,1757071778366,-151.77,0.0002297,2]
[383651003,1757071778389,-209.28,0.0002297,2]
[383651004,1757071778414,-1003.75545711,0.0002297,2]
[383651005,1757071778437,-420.96,0.0002297,3]